bitfinex/quotes_BTCUSD_20260215
["timestamp","ask_amount","ask_price","bid_price","bid_amount"]
[1771148404033,0.07134345,70512.0,70506.0,0.07091533]
[1771148404241,0.13941684,70524.0,70509.0,0.07091218]
[1771148404242,0.07090775,70515.0,70509.0,0.07091218]
[1771148404449,0.3394,70517.0,70509.0,0.00012941]
[1771148404660,0.3394,70517.0,70510.0,0.1338413]
[1771148405086,0.3394,70517.0,70509.0,0.00012941]
[1771148405292,0.3394,70517.0,70513.0,0.07090856]
[1771148405498,0.3394,70517.0,70514.0,0.07090764]
[1771148405703,0.3394,70517.0,70515.0,0.07090672]
[1771148406155,0.07090143,70521.0,70515.0,0.07090635]
[1771148406373,0.07090226,70520.0,70514.0,0.0709063]
[1771148406581,0.07090226,70520.0,70515.0,0.07090677]
[1771148407064,0.07090143,70521.0,70515.0,0.07090677]
[1771148408330,0.07094232,70520.0,70515.0,0.07086677]
[1771148408629,0.07094232,70520.0,70514.0,0.0709663]
[1771148408630,0.07090308,70519.0,70514.0,0.0709663]
[1771148408833,0.07090308,70519.0,70514.0,0.0709063]
[1771148409043,0.06877624,70519.0,70514.0,0.0709063]
[1771148409270,0.07094232,70520.0,70514.0,0.0709063]
[1771148409463,0.07090293,70519.0,70514.0,0.0709063]
[1771148409884,0.3394,70528.0,70513.0,0.07096737]
[1771148409885,0.07089029,70532.0,70526.0,0.07089494]
[1771148410318,0.3394,70536.0,70521.0,0.15727565]
[1771148410522,0.07088725,70535.0,70529.0,0.07089212]
[1771148410844,0.07088888,70533.0,70528.0,0.07089381]
[1771148410966,0.0004,70529.0,70528.0,0.07089381]
[1771148411173,0.0004,70534.0,70522.0,0.1338413]
[1771148411378,0.07128796,70534.0,70529.0,0.07089239]
[1771148411593,0.0004,70534.0,70530.0,0.0708914]
[1771148411793,0.02373883,70532.0,70525.0,0.07089647]
[1771148412002,0.0004,70534.0,70532.0,0.07088891]
[1771148412198,0.02377883,70540.0,70532.0,0.07038891]
[1771148412199,0.07088424,70538.0,70532.0,0.07038891]
[1771148412487,0.07088511,70537.0,70531.0,0.0708906]
[1771148412711,0.07088504,70537.0,70532.0,0.07088969]
[1771148412913,0.43406093,70540.0,70532.0,0.2835553]
[1771148413120,0.43406093,70540.0,70534.0,0.07088685]
[1771148413323,0.36317883,70540.0,70530.0,0.6034703]
[1771148413523,0.070887,70535.0,70530.0,0.67436199]
[1771148413818,0.070887,70535.0,70530.0,0.0708913]
[1771148414079,0.07088777,70536.0,70531.0,0.07089079]
[1771148414682,0.07088777,70536.0,70530.0,0.0708913]
[1771148414887,0.02389113,70539.0,70528.0,0.07089215]
[1771148415094,0.07039343,70529.0,70523.0,0.07089795]
[1771148415308,0.02389113,70528.0,70524.0,0.07089753]
[1771148415717,0.02389113,70528.0,70518.0,0.6034703]
[1771148415927,0.07089493,70527.0,70521.0,0.07089896]
[1771148416134,0.02389113,70526.0,70523.0,0.07089876]
[1771148416338,0.02389113,70526.0,70524.0,0.07089728]
[1771148416567,0.07089448,70529.0,70523.0,0.07089876]
[1771148417586,0.02389113,70530.0,70519.0,0.07090236]
[1771148417790,0.070896,70526.0,70521.0,0.07090025]
[1771148418597,0.07089488,70527.0,70522.0,0.07089973]
[1771148419575,0.07089401,70528.0,70523.0,0.07089884]
[1771148419741,0.09478514,70528.0,70523.0,0.07089884]
[1771148420138,0.0708949,70527.0,70522.0,0.07089973]
[1771148420464,0.09478603,70527.0,70522.0,0.07089973]
[1771148420782,0.02389113,70527.0,70523.0,0.07089875]
[1771148421346,0.02389113,70534.0,70518.0,0.00012941]
[1771148421553,0.07088959,70533.0,70527.0,0.07089388]
[1771148421862,0.07089014,70532.0,70526.0,0.07089409]
[1771148422066,0.07089109,70531.0,70526.0,0.07089409]
[1771148422264,0.07089014,70532.0,70527.0,0.07089476]
[1771148422998,0.07088986,70532.0,70527.0,0.07089476]
[1771148423197,4e-05,70530.0,70527.0,0.07089476]
[1771148425343,0.07089427,70528.0,70523.0,0.0708988]
[1771148426511,4e-05,70530.0,70529.0,0.07089282]
[1771148426714,4e-05,70530.0,70518.0,0.60359971]
[1771148426715,0.00044,70540.0,70520.0,1.2069806]
[1771148426963,0.09477944,70534.0,70529.0,0.07089231]
[1771148427119,0.02389113,70534.0,70530.0,0.07089136]
[1771148427467,0.07088708,70535.0,70530.0,0.07089136]
[1771148427667,0.02396613,70538.0,70525.0,0.81340784]
[1771148427967,0.09485019,70538.0,70533.0,0.0708883]
[1771148428108,0.07088506,70537.0,70532.0,0.07088944]
[1771148428315,0.07088506,70537.0,70531.0,0.07089046]
[1771148428571,0.07088506,70537.0,70532.0,0.07088977]
[1771148428751,0.09477619,70537.0,70532.0,0.07088977]
[1771148429559,0.07088594,70536.0,70531.0,0.07089046]
[1771148430522,0.07088587,70536.0,70531.0,0.07089046]
[1771148430733,0.09477619,70537.0,70532.0,0.07088965]
[1771148430936,0.02389113,70537.0,70520.0,4e-05]
[1771148431128,7.5e-05,70538.0,70527.0,0.60358135]
[1771148431340,7.5e-05,70538.0,70535.0,0.0708858]
[1771148431546,7.5e-05,70538.0,70528.0,0.07089382]
[1771148431752,0.07095925,70538.0,70533.0,0.07088866]
[1771148431963,0.0004,70537.0,70533.0,0.07088866]
[1771148432174,0.07128478,70537.0,70531.0,0.07088919]
[1771148432380,0.07088614,70536.0,70530.0,0.07088999]
[1771148432519,0.07128478,70537.0,70531.0,0.07089028]
[1771148432940,0.07128478,70537.0,70532.0,0.07088935]
[1771148433702,0.0004,70537.0,70527.0,0.42281965]
[1771148433875,0.07088578,70536.0,70527.0,0.0002]
[1771148434098,0.02389113,70529.0,70525.0,0.07089657]
[1771148434320,0.02389113,70529.0,70524.0,0.07089731]
[1771148434522,0.02389113,70529.0,70524.0,0.07089752]
[1771148435101,0.0947842,70529.0,70524.0,0.07089752]
[1771148435378,0.07089258,70530.0,70525.0,0.07089656]
[1771148436153,0.07089286,70529.0,70523.0,0.07089724]
[1771148436309,0.07089383,70528.0,70523.0,0.07089724]
[1771148436515,0.07089286,70529.0,70524.0,0.07089782]
[1771148437453,0.07089346,70530.0,70525.0,0.07089667]
[1771148437660,0.07089286,70529.0,70524.0,0.07089782]
[1771148437860,0.07089346,70530.0,70524.0,0.07089782]
[1771148438283,0.09478459,70530.0,70525.0,0.07089659]
[1771148438574,0.02389113,70529.0,70525.0,0.07089659]
[1771148439089,0.02389113,70529.0,70521.0,0.07090054]
[1771148439300,0.02389113,70527.0,70522.0,0.07089958]
[1771148439502,0.02389113,70527.0,70524.0,0.0002]
[1771148439659,0.07089595,70526.0,70524.0,0.0002]
[1771148440070,0.09478596,70527.0,70524.0,0.0002]
[1771148441871,0.07090153,70521.0,70519.0,0.0002]
[1771148442081,0.07090187,70520.0,70519.0,0.0002]
[1771148443440,0.28357934,70527.0,70515.0,0.0002]
[1771148443441,0.07090589,70516.0,70515.0,0.0002]
[1771148443651,0.09417962,70515.0,70512.0,0.0003986]
[1771148443872,0.07091039,70512.0,70510.0,4e-05]
[1771148444091,0.07091086,70513.0,70510.0,4e-05]
[1771148444338,0.09418356,70513.0,70510.0,4e-05]
[1771148444561,0.07090994,70512.0,70510.0,4e-05]
[1771148444788,0.09418362,70511.0,70510.0,4e-05]
[1771148447896,0.09418362,70511.0,70510.0,0.00024]
[1771148452403,0.07091092,70511.0,70510.0,0.00024]
[1771148452603,0.0232727,70516.0,70510.0,0.00024]
[1771148452753,0.07091092,70511.0,70510.0,0.00024]
[1771148453007,0.07091062,70512.0,70510.0,0.00024]
[1771148453340,0.07091062,70513.0,70510.0,0.00024]
[1771148453543,0.09418332,70513.0,70510.0,0.00014966]
[1771148454038,0.07091024,70512.0,70510.0,0.00014966]
[1771148454896,0.07091092,70511.0,70510.0,0.00014966]
[1771148455829,0.09418362,70511.0,70510.0,0.00014966]
[1771148457098,0.09418362,70511.0,70504.0,0.07111756]
[1771148457099,1.2072027,70520.0,70488.0,0.13232037]
[1771148457284,0.07093204,70490.0,70477.0,0.0002061]
[1771148457509,0.0232727,70487.0,70477.0,0.0002061]
[1771148457716,0.0232727,70487.0,70480.0,0.07094112]
[1771148457931,0.07093466,70488.0,70480.0,0.07094112]
[1771148458140,0.42088051,70495.0,70482.0,0.07093956]
[1771148458141,0.41041213,70490.0,70482.0,0.07093956]
[1771148458357,0.0908,70504.0,70488.0,0.0709334]
[1771148458577,0.07092873,70494.0,70490.0,0.60358135]
[1771148458776,0.07092695,70496.0,70488.0,0.00043288]
[1771148458982,0.30695703,70501.0,70488.0,0.07136647]
[1771148459232,0.0232727,70501.0,70488.0,0.00043288]
[1771148459432,0.62685405,70500.0,70489.0,0.07093296]
[1771148459662,0.07092299,70499.0,70489.0,0.07093295]
[1771148459964,0.07092299,70499.0,70488.0,0.0713669]
[1771148459965,0.44413913,70499.0,70488.0,0.00043288]
[1771148460281,0.05659742,70503.0,70489.0,0.62666189]
[1771148460399,0.07092156,70501.0,70494.0,0.07092726]
[1771148460607,0.07092219,70500.0,70494.0,0.07092726]
[1771148460807,0.11608572,70501.0,70494.0,0.07092726]
[1771148461002,0.07092769,70495.0,70489.0,0.67451395]
[1771148461237,0.07092198,70500.0,70490.0,0.07093181]
[1771148461508,0.0232727,70500.0,70491.0,0.0709308]
[1771148461714,0.0232727,70500.0,70497.0,0.07092422]
[1771148461888,0.04516416,70501.0,70496.0,0.07092553]
[1771148462335,0.04516416,70501.0,70495.0,0.07092693]
[1771148462483,0.04516416,70501.0,70491.0,0.07093104]
[1771148462889,0.04516416,70501.0,70496.0,0.07092524]
[1771148463090,0.11608524,70501.0,70495.0,0.07092701]
[1771148463501,0.11608524,70501.0,70496.0,0.07092597]
[1771148463801,0.11608524,70501.0,70500.0,0.07092198]
[1771148463802,0.04516416,70501.0,70500.0,0.07092198]
[1771148464000,0.04516416,70501.0,70498.0,0.07092372]
[1771148464203,0.13717177,70512.0,70496.0,0.02308054]
[1771148464204,0.33948,70508.0,70496.0,0.02308054]
[1771148464409,0.41039436,70508.0,70502.0,0.07091957]
[1771148464806,0.33948,70508.0,70504.0,0.07091791]
[1771148465013,0.33948,70508.0,70499.0,0.07092299]
[1771148465216,0.28363795,70513.0,70500.0,0.02308054]
[1771148465413,0.07091329,70509.0,70503.0,0.07091836]
[1771148465619,0.07091476,70508.0,70502.0,0.07091904]
[1771148466138,0.07091476,70508.0,70503.0,0.07091876]
[1771148466345,0.07091231,70510.0,70504.0,0.0709178]
[1771148466517,0.07091231,70510.0,70503.0,0.07091876]
[1771148466518,0.07091299,70509.0,70503.0,0.07091876]
[1771148466716,0.07091397,70508.0,70503.0,0.07091876]
[1771148466944,5.5e-05,70507.0,70502.0,0.07111981]
[1771148467262,0.0003328,70507.0,70502.0,0.07111981]
[1771148467433,0.0003328,70507.0,70503.0,0.07091895]
[1771148467650,0.0003328,70507.0,70504.0,0.07091784]
[1771148467818,0.0003328,70507.0,70503.0,0.07091895]
[1771148468396,0.0002778,70507.0,70503.0,0.07087895]
[1771148468567,0.0002778,70507.0,70504.0,0.07091775]
[1771148468776,0.0002778,70507.0,70505.0,0.07091645]
[1771148468979,5.5e-05,70509.0,70506.0,0.07091595]
[1771148469128,0.07091166,70511.0,70505.0,0.07091636]
[1771148469542,0.07091226,70510.0,70505.0,0.07091636]
[1771148469752,0.07091195,70510.0,70505.0,0.07091636]
[1771148469978,5.5e-05,70513.0,70510.0,0.0709119]
[1771148470179,0.0002068,70514.0,70507.0,0.02308054]
[1771148470381,0.0002068,70514.0,70509.0,0.07091226]
[1771148470618,0.33952,70520.0,70509.0,0.15540091]
[1771148470619,4e-05,70520.0,70509.0,0.15540091]
[1771148470828,0.07090328,70519.0,70514.0,0.07090728]
[1771148470965,4e-05,70520.0,70512.0,0.02308054]
[1771148471165,0.00016989,70520.0,70515.0,0.07090626]
[1771148471844,0.00016989,70520.0,70516.0,0.07090524]
[1771148472042,0.00016989,70520.0,70515.0,0.07090626]
[1771148472213,0.07107214,70520.0,70514.0,0.07090738]
[1771148472823,0.07090446,70518.0,70513.0,0.07090864]
[1771148473029,0.07090316,70519.0,70513.0,0.07090864]
[1771148473444,0.07090403,70518.0,70512.0,0.07090826]
[1771148473823,0.02488323,70519.0,70508.0,0.07091324]
[1771148474003,0.07090879,70514.0,70508.0,0.07091324]
[1771148474648,0.07090693,70515.0,70509.0,0.07091269]
[1771148474831,0.07090591,70516.0,70511.0,0.07091025]
[1771148475258,0.02488323,70519.0,70514.0,0.0709071]
[1771148475259,0.09578616,70519.0,70514.0,0.0709071]
[1771148475498,0.07090399,70518.0,70513.0,0.07090843]
[1771148476270,0.07090399,70518.0,70512.0,0.07090962]
[1771148476271,0.070905,70517.0,70512.0,0.07090962]
[1771148476594,0.07090399,70518.0,70513.0,0.07090879]
[1771148476824,0.02488323,70519.0,70516.0,0.07090585]
[1771148476975,0.09578624,70519.0,70509.0,0.07091293]
[1771148477181,0.07090301,70519.0,70513.0,0.07090857]
[1771148477392,0.07090433,70518.0,70513.0,0.07090857]
[1771148479501,0.00056989,70520.0,70516.0,0.07090506]
[1771148479803,0.00056989,70520.0,70512.0,0.02440979]
[1771148479969,0.07090427,70518.0,70513.0,0.07090875]
[1771148480946,0.07090355,70519.0,70513.0,0.07090875]
[1771148481359,0.07090398,70518.0,70513.0,0.07090875]
[1771148482412,0.07090398,70518.0,70512.0,0.07090943]
[1771148482615,0.07090398,70518.0,70513.0,0.07090838]
[1771148483071,0.07090861,70514.0,70508.0,0.07091344]
[1771148483198,0.07090861,70515.0,70509.0,0.07091243]
[1771148483404,4e-05,70510.0,70509.0,0.07091243]
[1771148484185,0.0004,70517.0,70507.0,0.16059867]
[1771148484317,0.0004,70517.0,70513.0,0.07090853]
[1771148484927,0.0004,70517.0,70513.0,0.07090721]
[1771148485645,0.0004,70517.0,70512.0,0.07090827]
[1771148485876,0.0004,70517.0,70513.0,0.07090889]
[1771148486351,0.07130489,70517.0,70512.0,0.07090827]
[1771148486582,0.07090597,70516.0,70511.0,0.0709104]
[1771148487574,0.07130663,70517.0,70512.0,0.07090988]
[1771148488320,0.07130663,70517.0,70511.0,0.0709104]
[1771148488530,0.07130663,70517.0,70512.0,0.07090957]
[1771148488710,0.0004,70517.0,70513.0,0.07090885]
[1771148488911,0.07130502,70517.0,70512.0,0.07090957]
[1771148489551,0.0004,70517.0,70512.0,0.07090957]
[1771148490163,0.0004,70517.0,70513.0,0.07090884]
[1771148490356,0.071305,70517.0,70512.0,0.07090957]
[1771148490495,0.0004,70517.0,70513.0,0.07090866]
[1771148490694,0.0004,70517.0,70513.0,0.07090879]
[1771148492651,0.07130489,70517.0,70512.0,0.07090957]
[1771148492946,0.07130489,70517.0,70501.0,0.0002]
[1771148492947,0.07090639,70516.0,70501.0,0.0002]
[1771148493147,0.0713053,70517.0,70512.0,0.07090963]
[1771148493348,0.0713053,70517.0,70501.0,0.02460979]
[1771148493349,0.02488323,70516.0,70501.0,0.02460979]
[1771148493580,0.02488323,70516.0,70512.0,0.07090959]
[1771148495167,0.02488323,70516.0,70513.0,0.07090882]
[1771148495373,0.0004,70517.0,70513.0,0.07090882]
[1771148495762,0.02528323,70517.0,70513.0,0.07090882]
[1771148497385,0.0004,70517.0,70513.0,0.07090882]
[1771148498624,0.00056989,70520.0,70517.0,0.07090429]
[1771148500017,0.00056989,70520.0,70512.0,0.2838382]
[1771148500018,0.00056989,70520.0,70515.0,0.07090629]
[1771148500237,0.07147218,70520.0,70515.0,0.07090629]
[1771148500437,0.00056989,70520.0,70516.0,0.07090581]
[1771148500645,0.00056989,70520.0,70517.0,0.07090403]
[1771148504290,0.07147218,70520.0,70515.0,0.07090521]
[1771148504655,0.00056989,70520.0,70516.0,0.0709058]
[1771148507834,0.0714718,70520.0,70515.0,0.07090521]
[1771148508247,0.0714718,70520.0,70516.0,0.07090585]
[1771148508867,0.00056989,70520.0,70516.0,0.07090585]
[1771148512023,0.00056989,70520.0,70517.0,0.07090455]
[1771148512246,0.00056989,70520.0,70516.0,0.07090585]
[1771148516780,0.00056989,70520.0,70513.0,0.07090891]
[1771148516915,0.00056989,70520.0,70518.0,0.07090318]
[1771148517555,0.00056989,70520.0,70519.0,0.07090287]
[1771148517764,0.00056989,70520.0,70518.0,0.07090318]
[1771148518305,0.00056989,70520.0,70518.0,0.07090374]
[1771148518470,0.00056989,70520.0,70517.0,0.07090325]
[1771148519496,0.00056989,70520.0,70519.0,0.07090287]
[1771148520472,0.00056989,70520.0,70517.0,0.07090323]
[1771148522502,0.00056989,70520.0,70516.0,0.0709042]
[1771148522712,0.00056989,70520.0,70516.0,0.07090536]
[1771148522906,0.00056989,70520.0,70517.0,0.07090485]
[1771148523470,0.00056989,70520.0,70516.0,0.07090536]
[1771148525217,0.00056989,70520.0,70517.0,0.07090478]
[1771148525942,0.00056989,70520.0,70516.0,0.07110536]
[1771148527384,0.00056989,70520.0,70517.0,0.07090475]
[1771148528000,0.00056989,70520.0,70516.0,0.07110536]
[1771148528173,0.00056989,70520.0,70517.0,0.0709048]
[1771148529828,0.00056989,70520.0,70516.0,0.07110536]
[1771148531087,0.00056989,70520.0,70517.0,0.07090476]
[1771148531486,0.00056989,70520.0,70516.0,0.07110536]
[1771148532768,0.00056989,70520.0,70517.0,0.07090463]
[1771148535816,0.00056989,70520.0,70518.0,0.07090384]
[1771148535995,0.07147218,70520.0,70516.0,0.0002]
[1771148536552,0.00056989,70520.0,70516.0,0.0002]
[1771148536764,0.00056989,70520.0,70517.0,0.07090463]
[1771148537772,0.00056989,70520.0,70516.0,0.07110551]
[1771148539947,0.00056989,70520.0,70517.0,0.07090459]
[1771148540380,0.00056989,70520.0,70518.0,0.07090387]
[1771148540581,0.00056989,70520.0,70517.0,0.07090459]
[1771148541401,0.00056989,70520.0,70517.0,0.07110459]
[1771148541919,0.07090388,70518.0,70517.0,0.0002]
[1771148546343,0.07090316,70519.0,70512.0,0.07110827]
[1771148546344,0.07090891,70513.0,70512.0,0.0002]
[1771148546544,0.00056989,70520.0,70502.0,0.0002]
[1771148546545,0.42598677,70520.0,70502.0,0.0002]
[1771148546787,0.09347334,70506.0,70502.0,0.0002]
[1771148547098,0.09347333,70506.0,70500.0,0.07092174]
[1771148547253,0.09347333,70506.0,70501.0,0.07092078]
[1771148547458,0.09347333,70506.0,70501.0,0.0709205]
[1771148547953,0.07099623,70506.0,70501.0,0.0709205]
[1771148548330,0.07091705,70505.0,70500.0,0.0195997]
[1771148548693,0.07099623,70506.0,70501.0,0.07092081]
[1771148549005,0.07091623,70506.0,70501.0,0.07092081]
[1771148549271,0.07091623,70506.0,70502.0,0.0002]
[1771148549590,0.0225571,70506.0,70502.0,0.0002]
[1771148549808,0.0225571,70506.0,70494.0,0.0910477]
[1771148549991,0.60452592,70520.0,70494.0,0.0002477]
[1771148549992,0.60395603,70510.0,70494.0,0.0002477]
[1771148550187,0.09298268,70497.0,70494.0,0.0001877]
[1771148550427,0.07092558,70498.0,70494.0,0.0001877]
[1771148550552,0.0709233,70499.0,70494.0,0.07111538]
[1771148551380,0.0709233,70499.0,70494.0,0.00062058]
[1771148551579,0.0709233,70499.0,70494.0,0.07154844]
[1771148551778,0.75563247,70502.0,70494.0,0.07154759]
[1771148551779,0.31658358,70502.0,70494.0,0.07154759]
[1771148551950,0.31658358,70502.0,70501.0,0.07092097]
[1771148551951,0.13135042,70502.0,70501.0,0.07092097]
[1771148552154,0.0709151,70507.0,70502.0,0.07091996]
[1771148552769,0.0709151,70507.0,70501.0,0.07092097]
[1771148552770,0.07091604,70506.0,70501.0,0.07092097]
[1771148552973,0.0709151,70507.0,70502.0,0.07091989]
[1771148553158,0.07091597,70506.0,70501.0,0.07092097]
[1771148553558,0.07091597,70506.0,70500.0,0.07092037]
[1771148553998,0.07091708,70505.0,70500.0,0.07092037]
[1771148554434,0.07091708,70505.0,70499.0,0.07092129]
[1771148554584,0.07091796,70504.0,70499.0,0.07092129]
[1771148554785,0.07091708,70505.0,70499.0,0.07092129]
[1771148555191,0.07092044,70502.0,70490.0,0.73106324]
[1771148555429,0.07091904,70503.0,70498.0,0.07092365]
[1771148555890,0.07092342,70499.0,70494.0,0.09563713]
[1771148556064,0.07092342,70499.0,70494.0,0.0717483]
[1771148556286,0.07092146,70501.0,70495.0,0.06326362]
[1771148556786,0.07092146,70501.0,70496.0,0.07092562]
[1771148557571,0.07092167,70502.0,70497.0,0.07092491]
[1771148557941,0.07092108,70501.0,70496.0,0.07092562]
[1771148558340,4e-05,70500.0,70496.0,0.07084182]
[1771148559828,4e-05,70500.0,70495.0,0.07092534]
[1771148560027,0.07096244,70500.0,70495.0,0.07092534]
[1771148560890,4e-05,70500.0,70496.0,0.07092586]
[1771148562387,0.07096219,70500.0,70495.0,0.07092534]
[1771148562697,0.07092334,70499.0,70494.0,0.07174701]
[1771148562936,0.09565317,70499.0,70494.0,0.07174701]
[1771148563105,0.07096219,70500.0,70495.0,0.07112689]
[1771148564417,4e-05,70500.0,70496.0,0.07092575]
[1771148564812,0.0004,70503.0,70495.0,0.0002]
[1771148565013,0.0713195,70503.0,70498.0,0.07092369]
[1771148566894,0.0004,70503.0,70499.0,0.07092279]
[1771148567089,0.0004,70503.0,70501.0,0.07092001]
[1771148567353,0.02367971,70510.0,70501.0,0.07092001]
[1771148567354,0.07091594,70507.0,70502.0,0.07091997]
[1771148567895,0.07091627,70506.0,70501.0,0.0709193]
[1771148568499,0.07091627,70506.0,70498.0,0.2836958]
[1771148568813,0.07091627,70506.0,70501.0,0.07092091]
[1771148569331,0.07091695,70505.0,70500.0,0.07092102]
[1771148571038,0.0004,70503.0,70501.0,0.0709207]
[1771148571351,0.0004,70503.0,70501.0,0.0708769]
[1771148571861,0.0004,70503.0,70500.0,0.07092102]
[1771148573570,0.00190337,70512.0,70502.0,0.02382649]
[1771148573777,0.00190337,70512.0,70511.0,0.07091092]
[1771148575507,0.07090596,70516.0,70511.0,0.07091092]
[1771148575822,0.0004,70518.0,70514.0,0.0709076]
[1771148577141,0.0004,70518.0,70515.0,0.07090659]
[1771148577861,0.0004,70518.0,70514.0,0.07090781]
[1771148578109,0.0004,70518.0,70508.0,0.60409621]
[1771148578317,0.0004,70518.0,70515.0,0.07090687]
[1771148578521,0.0004,70518.0,70508.0,0.60409621]
[1771148578706,0.07130429,70518.0,70509.0,0.07091293]
[1771148578910,0.07130429,70518.0,70512.0,0.07090903]
[1771148579325,0.07130429,70518.0,70513.0,0.07090872]
[1771148579760,0.0004,70518.0,70514.0,0.07090712]
[1771148580036,0.0709059,70516.0,70511.0,0.07091076]
[1771148580462,0.07090548,70517.0,70511.0,0.07091076]
[1771148580669,0.07090598,70516.0,70511.0,0.07091076]
[1771148581109,0.07090548,70517.0,70512.0,0.07090991]
[1771148581991,0.0709059,70516.0,70511.0,0.07091076]
[1771148582399,0.0004,70518.0,70506.0,0.60409621]
[1771148582604,0.00044,70520.0,70517.0,0.07090488]
[1771148583018,0.07134229,70520.0,70515.0,0.07090678]
[1771148583240,0.00044,70520.0,70515.0,0.07090678]
[1771148583460,0.00044,70520.0,70518.0,0.07090341]
[1771148583665,0.00044,70520.0,70517.0,0.07090296]
[1771148583907,0.00056989,70520.0,70517.0,0.07090296]
[1771148584106,0.00056989,70520.0,70516.0,0.07090558]
[1771148584308,0.00056989,70520.0,70516.0,0.07090533]
[1771148584521,0.00056989,70520.0,70517.0,0.0709044]
[1771148584728,0.00056989,70520.0,70518.0,0.07090343]
[1771148585334,0.00056989,70520.0,70518.0,0.07090363]
[1771148585546,0.00056989,70520.0,70519.0,0.07090287]
[1771148586482,0.0004,70524.0,70523.0,0.07089885]
[1771148586690,0.0004,70524.0,70521.0,0.07090066]
[1771148586691,0.00044326,70524.0,70521.0,0.07090066]
[1771148587143,0.07134168,70524.0,70515.0,0.07090689]
[1771148587344,0.07134168,70524.0,70514.0,0.6279227]
[1771148587345,0.00044326,70524.0,70514.0,0.6279227]
[1771148587551,0.00044326,70524.0,70514.0,0.91155029]
[1771148587767,0.00044326,70524.0,70519.0,0.07090206]
[1771148588149,0.07134148,70524.0,70519.0,0.07090206]
[1771148588392,0.07089906,70523.0,70518.0,0.07090204]
[1771148588635,0.07090048,70522.0,70517.0,0.0709046]
[1771148589244,0.07089906,70523.0,70517.0,0.0709046]
[1771148589245,0.07089906,70523.0,70518.0,0.07090365]
[1771148589932,0.00044326,70524.0,70520.0,0.07090141]
[1771148590142,0.00044326,70524.0,70521.0,0.07090055]
[1771148590352,0.00044326,70524.0,70511.0,0.02382649]
[1771148590559,0.07089929,70523.0,70518.0,0.07090352]
[1771148590791,0.07134289,70524.0,70518.0,0.07090352]
[1771148591404,0.07134289,70524.0,70519.0,0.07090262]
[1771148591849,0.07134289,70524.0,70518.0,0.07090352]
[1771148591850,0.07089901,70523.0,70518.0,0.07090352]
[1771148592861,0.0004,70523.0,70515.0,0.07090689]
[1771148593063,0.0004,70523.0,70521.0,0.07090018]
[1771148593356,0.0004,70523.0,70522.0,0.07089986]
[1771148593481,0.0004,70523.0,70521.0,0.07090018]
[1771148593834,0.0004,70523.0,70520.0,0.07090172]
[1771148594306,0.0004,70523.0,70521.0,0.07090025]
[1771148595024,0.0004,70523.0,70522.0,0.07089986]
[1771148595237,0.02407971,70527.0,69992.0,1.2549]
[1771148595238,0.00044,70540.0,70536.0,0.07088578]
[1771148595443,0.00044,70540.0,70520.0,0.60413621]
[1771148595649,0.00044,70540.0,70520.0,0.28364357]
[1771148595650,0.07089376,70529.0,70520.0,0.28364357]
[1771148595850,0.15259703,70527.0,70520.0,0.28364357]
[1771148596188,0.02364111,70525.0,70523.0,0.07089827]
[1771148596327,0.02347851,70525.0,70523.0,0.07089827]
[1771148596916,0.28356427,70531.0,70520.0,0.28364619]
[1771148596917,0.02364111,70526.0,70520.0,4e-05]
[1771148597117,0.07090045,70522.0,70517.0,0.3396]
[1771148597349,0.07090092,70521.0,70517.0,0.3396]
[1771148597858,0.07090045,70522.0,70517.0,0.07090455]
[1771148598300,0.07057519,70522.0,70517.0,0.07090455]
[1771148598699,0.02364111,70525.0,70522.0,0.07089935]
[1771148598878,0.02364111,70525.0,70522.0,4.326e-05]
[1771148599531,0.02364111,70525.0,70522.0,0.070943]
[1771148599713,0.02364111,70525.0,70523.0,0.07089843]
[1771148599922,0.02364111,70525.0,70522.0,0.070943]
[1771148600520,0.07089341,70529.0,70523.0,0.07089885]
[1771148600702,0.07089442,70528.0,70523.0,0.07089885]
[1771148600943,0.07089486,70527.0,70522.0,0.07094137]
[1771148601176,0.07089416,70528.0,70523.0,0.07089852]
[1771148601724,0.09453527,70528.0,70523.0,0.07089852]
[1771148601924,0.09453513,70528.0,70523.0,0.07089852]
[1771148603588,0.07133351,70530.0,70524.0,0.07089775]
[1771148603765,0.07089307,70529.0,70524.0,0.07089775]
[1771148603961,0.07089415,70528.0,70522.0,0.07094276]
[1771148604146,0.07089415,70528.0,70523.0,0.07089857]
[1771148604818,0.07039415,70528.0,70523.0,0.07089857]
[1771148605664,0.07039415,70528.0,70524.0,0.07089783]
[1771148606119,0.00044,70530.0,70523.0,0.28359386]
[1771148606325,0.00044,70530.0,70526.0,0.07089539]
[1771148606554,0.00044,70530.0,70526.0,0.07089575]
[1771148606753,0.00044,70530.0,70522.0,4.326e-05]
[1771148607010,0.07089312,70529.0,70524.0,0.07089718]
[1771148607189,0.07133219,70530.0,70525.0,0.07089624]
[1771148607391,0.00044,70530.0,70526.0,0.0708957]
[1771148607595,0.07089318,70529.0,70524.0,0.07089753]
[1771148607927,0.07133233,70530.0,70525.0,0.07089672]
[1771148608131,0.0004,70528.0,70525.0,0.07089672]
[1771148608332,0.0004,70528.0,70527.0,0.07089483]
[1771148608577,0.28355052,70535.0,70522.0,4.326e-05]
[1771148608578,0.07128435,70538.0,70522.0,0.02407715]
[1771148608780,0.07128606,70536.0,70531.0,0.07089008]
[1771148609669,0.0004,70536.0,70533.0,0.07088842]
[1771148609869,0.0004,70536.0,70532.0,0.07088935]
[1771148610487,0.0004,70536.0,70534.0,0.07088716]
[1771148611284,0.00044,70540.0,70534.0,0.07088716]
[1771148611495,0.00044,70540.0,70537.0,0.07088396]
[1771148611820,0.00044,70540.0,70539.0,0.07088277]
[1771148613443,0.00044,70540.0,70532.0,0.02403389]
[1771148613444,0.00044,70540.0,70533.0,0.0708888]
[1771148613642,0.00044,70540.0,70535.0,0.07088645]
[1771148613946,0.00044,70540.0,70539.0,0.07088277]
[1771148615518,0.00044,70540.0,70537.0,0.0708841]
[1771148615710,0.07132178,70540.0,70532.0,0.02403389]
[1771148615909,0.07132178,70540.0,70534.0,0.07088679]
[1771148616628,0.07132178,70540.0,70535.0,0.07088658]
[1771148617781,0.07132178,70540.0,70534.0,0.07088679]
[1771148617993,0.07132178,70540.0,70535.0,0.07088667]
[1771148618342,0.07088292,70539.0,70534.0,0.07088679]
[1771148618557,0.07132277,70540.0,70523.0,0.07089885]
[1771148618762,0.07088852,70534.0,70528.0,0.07089312]
[1771148619270,0.07088889,70533.0,70528.0,0.07089312]
[1771148619881,0.07088836,70535.0,70529.0,0.07089282]
[1771148620029,0.07088836,70535.0,70530.0,0.07089178]
[1771148620772,0.07088815,70534.0,70528.0,0.07089322]
[1771148621180,0.07088815,70534.0,70529.0,0.07089271]
[1771148622304,0.07128815,70534.0,70529.0,0.07089271]
[1771148624118,0.0004,70534.0,70530.0,0.07089167]
[1771148624332,0.0004,70534.0,70526.0,0.07089583]
[1771148624522,0.0004,70534.0,70532.0,0.07088935]
[1771148625328,0.0004,70534.0,70533.0,0.0708888]
[1771148625664,0.0004,70534.0,70532.0,0.07088935]